fUST/lending_fUST_20250917
["ID","MTS","AMOUNT","RATE_DAILY","PERIOD"]
[385833460,1758058251059,-480.0,0.00022739,3]
[385833462,1758058251068,-252.0,0.00022742,2]
[385833464,1758058251078,-199.0,0.00022744,2]
[385833466,1758058251087,-500.0,0.00022773,2]
[385833468,1758058251096,-500.0,0.00022773,2]
[385833470,1758058251108,-500.0,0.00022773,2]
[385833472,1758058251118,-500.0,0.00022773,2]
[385833474,1758058251127,-500.0,0.00022773,2]
[385833476,1758058251136,-500.0,0.00022773,2]
[385833478,1758058251146,-500.0,0.00022773,2]
[385833480,1758058251154,-500.0,0.00022773,2]
[385833482,1758058251164,-501.85027703,0.00022773,2]
[385833484,1758058251173,-500.0,0.00022773,2]
[385833486,1758058251182,-500.0,0.00022773,2]
[385833488,1758058251192,-500.0,0.00022773,2]
[385833490,1758058251201,-500.0,0.00022773,2]
[385833492,1758058251210,-500.0,0.00022773,2]
[385833494,1758058251219,-500.77666134,0.00022773,2]
[385833496,1758058251228,-501.64757414,0.00022773,2]
[385833498,1758058251237,-500.0,0.00022773,2]
[385833500,1758058251248,-500.0,0.00022773,2]
[385833502,1758058251263,-500.0,0.00022773,2]
[385833504,1758058251274,-500.0,0.00022773,2]
[385833506,1758058251294,-500.06147884,0.00022773,2]
[385833508,1758058251303,-500.0,0.00022773,2]
[385833510,1758058251312,-500.78801028,0.00022773,2]
[385833512,1758058251321,-500.0,0.00022773,2]
[385833514,1758058251331,-500.0,0.00022773,2]
[385833516,1758058251340,-500.0,0.00022773,2]
[385833518,1758058251349,-500.0,0.00022773,2]
[385833520,1758058251358,-502.02817721,0.00022773,2]
[385833522,1758058251367,-500.0,0.00022773,2]
[385833524,1758058251376,-501.59768713,0.00022773,2]
[385833526,1758058251386,-163.8894747,0.00022773,2]
[385833528,1758058251395,-501.78976463,0.00022773,2]
[385833530,1758058251404,-5950.23748397,0.00022776,2]
[385833532,1758058251413,-168.0,0.00022777,2]
[385833534,1758058251422,-199.0,0.00022792,2]
[385833536,1758058251431,-665.21,0.000228,7]
[385833538,1758058251442,-26087.17,0.000228,7]
[385833540,1758058251451,-800.0,0.00022831,7]
[385833542,1758058251459,-601.27752762,0.00022854,2]
[385833544,1758058251469,-168.0,0.00022957,2]
[385833546,1758058251478,-1474.44820705,0.00023,2]
[385833548,1758058251488,-160.0,0.00023,3]
[385833550,1758058251497,-847.61663983,0.00023,3]
[385833552,1758058251506,-160.0,0.00023,3]
[385833554,1758058251514,-19482.96,0.00023,2]
[385833556,1758058251523,-160.0,0.00023,2]
[385833558,1758058251532,-217.86301978,0.00023,3]
[385833560,1758058251542,-531.43424302,0.00023,3]
[385833562,1758058251551,-847.61663983,0.00023,3]
[385833564,1758058251560,-233.29513139,0.00023,3]
[385833566,1758058251569,-500.0,0.00023013,2]
[385833568,1758058251578,-151.0,0.00023013,2]
[385833570,1758058251586,-151.0,0.00023013,2]
[385833572,1758058251595,-500.0,0.00023013,2]
[385833574,1758058251605,-283.05841209,0.00023013,2]
[385833576,1758058251614,-500.0,0.00023013,2]
[385833578,1758058251623,-152.97124543,0.00023013,2]
[385833580,1758058251632,-224.22675449,0.00023013,2]
[385833582,1758058251642,-151.0,0.00023013,2]
[385833584,1758058251651,-151.0,0.00023013,2]
[385833586,1758058251660,-500.0,0.00023013,2]
[385833588,1758058251669,-831.0,0.00023013,2]
[385833590,1758058251677,-507.81,0.00023013,3]
[385833592,1758058251686,-480.0,0.00023013,3]
[385833594,1758058251696,-480.0,0.00023013,3]
[385833596,1758058251704,-480.0,0.00023013,3]
[385833598,1758058251714,-480.0,0.00023013,3]
[385833600,1758058251723,-480.0,0.00023013,3]
[385833602,1758058251733,-480.0,0.00023013,3]
[385833603,1758058251743,-480.0,0.00023013,3]
[385833605,1758058251752,-480.0,0.00023013,3]
[385833607,1758058251762,-447.53,0.00023013,3]
[385833609,1758058251771,-480.0,0.00023013,3]
[385833611,1758058251780,-480.0,0.00023013,3]
[385833613,1758058251790,-480.0,0.00023013,3]
[385833616,1758058251799,-480.0,0.00023013,3]
[385833617,1758058251808,-518.46,0.00023013,3]
[385833619,1758058251817,-480.0,0.00023013,3]
[385833621,1758058251826,-480.0,0.00023013,3]
[385833623,1758058251835,-480.0,0.00023013,3]
[385833625,1758058251845,-300.72910628,0.00023013,3]
[385833627,1758058251854,-480.0,0.00023013,3]
[385833629,1758058251864,-1325.44,0.00023013,3]
[385833632,1758058251877,-480.0,0.00023013,3]
[385833634,1758058251887,-480.0,0.00023013,3]
[385833635,1758058251896,-480.0,0.00023013,3]
[385833637,1758058251905,-505.72,0.00023013,3]
[385833639,1758058251915,-480.0,0.00023013,3]
[385833641,1758058251924,-480.0,0.00023013,3]
[385833643,1758058251933,-536.1,0.00023013,3]
[385833645,1758058251942,-480.0,0.00023013,3]
[385833647,1758058251951,-480.0,0.00023013,3]
[385833649,1758058251960,-480.0,0.00023013,3]
[385833651,1758058251969,-480.0,0.00023013,3]
[385833653,1758058251978,-1918.31,0.00023013,3]
[385833655,1758058251987,-480.0,0.00023013,3]
[385833657,1758058251995,-480.0,0.00023013,3]
[385833659,1758058252005,-480.0,0.00023013,3]
[385833669,1758058252082,-480.0,0.00023013,3]
[385833671,1758058252091,-877.7,0.00023013,3]
[385833673,1758058252101,-480.0,0.00023013,3]
[385833675,1758058252110,-480.0,0.00023013,3]
[385833677,1758058252119,-487.04,0.00023013,3]
[385833679,1758058252128,-1035.57,0.00023013,3]
[385833681,1758058252137,-480.0,0.00023013,3]
[385833683,1758058252146,-652.36,0.00023013,3]
[385833685,1758058252155,-480.0,0.00023013,3]
[385833687,1758058252164,-480.0,0.00023013,3]
[385833689,1758058252173,-480.0,0.00023013,3]
[385833691,1758058252182,-480.0,0.00023013,3]
[385833692,1758058252191,-480.0,0.00023013,3]
[385833695,1758058252201,-480.0,0.00023013,3]
[385833697,1758058252210,-480.0,0.00023013,3]
[385833698,1758058252219,-480.0,0.00023013,3]
[385833701,1758058252229,-480.0,0.00023013,3]
[385833702,1758058252238,-480.0,0.00023013,3]
[385833705,1758058252247,-480.0,0.00023013,3]
[385833707,1758058252257,-480.0,0.00023013,3]
[385833709,1758058252266,-480.0,0.00023013,3]
[385833711,1758058252275,-480.0,0.00023013,3]
[385833713,1758058252285,-480.0,0.00023013,3]
[385833715,1758058252294,-480.0,0.00023013,3]
[385833717,1758058252303,-480.0,0.00023013,3]
[385833719,1758058252312,-739.37,0.00023013,3]
[385833721,1758058252322,-480.0,0.00023013,3]
[385833723,1758058252331,-480.0,0.00023013,3]
[385833725,1758058252340,-480.0,0.00023013,3]
[385833727,1758058252349,-480.0,0.00023013,3]
[385833729,1758058252358,-480.0,0.00023013,3]
[385833731,1758058252367,-480.0,0.00023013,3]
[385833733,1758058252379,-480.0,0.00023013,3]
[385833735,1758058252391,-480.0,0.00023013,3]
[385833737,1758058252400,-480.0,0.00023013,3]
[385833739,1758058252410,-757.44,0.00023013,3]
[385833741,1758058252418,-480.0,0.00023013,3]
[385833743,1758058252427,-480.0,0.00023013,3]
[385833745,1758058252436,-1146.66,0.00023013,3]
[385833747,1758058252445,-480.0,0.00023013,3]
[385833748,1758058252454,-480.0,0.00023013,3]
[385833751,1758058252463,-480.0,0.00023013,3]
[385833753,1758058252472,-859.2,0.00023013,3]
[385833755,1758058252482,-480.0,0.00023013,3]
[385833757,1758058252491,-480.0,0.00023013,3]
[385833759,1758058252500,-480.0,0.00023013,3]
[385833761,1758058252509,-480.0,0.00023013,3]
[385833763,1758058252518,-480.0,0.00023013,3]
[385833764,1758058252527,-480.0,0.00023013,3]
[385833766,1758058252536,-588.82,0.00023013,3]
[385833768,1758058252546,-480.0,0.00023013,3]
[385833769,1758058252554,-2207.31,0.00023013,3]
[385833770,1758058252563,-480.0,0.00023013,3]
[385833771,1758058252572,-480.0,0.00023013,3]
[385833772,1758058252581,-480.0,0.00023013,3]
[385833773,1758058252590,-575.92,0.00023013,3]
[385833774,1758058252600,-480.0,0.00023013,3]
[385833775,1758058252609,-480.0,0.00023013,3]
[385833776,1758058252618,-932.15,0.00023013,3]
[385833777,1758058252627,-480.0,0.00023013,3]
[385833778,1758058252636,-480.0,0.00023013,3]
[385833779,1758058252645,-480.0,0.00023013,3]
[385833780,1758058252654,-480.0,0.00023013,3]
[385833781,1758058252663,-480.0,0.00023013,3]
[385833782,1758058252673,-480.0,0.00023013,3]
[385833783,1758058252682,-480.0,0.00023013,3]
[385833784,1758058252693,-480.0,0.00023013,3]
[385833786,1758058252702,-480.0,0.00023013,3]
[385833788,1758058252712,-480.0,0.00023013,3]
[385833790,1758058252721,-480.0,0.00023013,3]
[385833792,1758058252730,-480.0,0.00023013,3]
[385833794,1758058252739,-1129.29,0.00023013,3]
[385833796,1758058252748,-480.0,0.00023013,3]
[385833798,1758058252757,-480.0,0.00023013,3]
[385833800,1758058252766,-1005.25,0.00023013,3]
[385833802,1758058252775,-877.89,0.00023013,3]
[385833804,1758058252784,-568.82,0.00023013,3]
[385833806,1758058252793,-4272.36,0.00023013,3]
[385833808,1758058252803,-480.0,0.00023013,3]
[385833810,1758058252812,-347.53,0.00023013,3]
[385833812,1758058252821,-1790.96,0.00023013,3]
[385833814,1758058252830,-480.0,0.00023013,3]
[385833816,1758058252840,-530.53700526,0.00023013,3]
[385833818,1758058252849,-553.21,0.00023013,3]
[385833820,1758058252858,-480.0,0.00023013,3]
[385833822,1758058252868,-2191.19,0.00023013,3]
[385833824,1758058252882,-480.0,0.00023013,3]
[385833826,1758058252891,-480.0,0.00023013,3]
[385833828,1758058252900,-480.0,0.00023013,3]
[385833830,1758058252910,-480.0,0.00023013,3]
[385833832,1758058252919,-480.0,0.00023013,3]
[385833834,1758058252928,-480.0,0.00023013,3]
[385833836,1758058252938,-480.0,0.00023013,3]
[385833838,1758058252947,-480.0,0.00023013,3]
[385833840,1758058252956,-2445.62,0.00023013,3]
[385833842,1758058252964,-480.0,0.00023013,3]
[385833844,1758058252974,-480.0,0.00023013,3]
[385833846,1758058252983,-673.7,0.00023013,3]
[385833848,1758058252992,-480.0,0.00023013,3]
[385833850,1758058253001,-480.0,0.00023013,3]
[385833852,1758058253011,-4198.35,0.00023013,3]
[385833854,1758058253019,-480.0,0.00023013,3]
[385833856,1758058253028,-480.0,0.00023013,3]
[385833858,1758058253037,-480.0,0.00023013,3]
[385833860,1758058253046,-480.0,0.00023013,3]
[385833862,1758058253055,-480.0,0.00023013,3]
[385833864,1758058253065,-683.31,0.00023013,3]
[385833866,1758058253074,-1125.17,0.00023013,3]
[385833868,1758058253083,-716.81,0.00023013,3]
[385833870,1758058253092,-480.0,0.00023013,3]
[385833872,1758058253101,-480.0,0.00023013,3]
[385833874,1758058253111,-1051.6,0.00023013,3]
[385833876,1758058253120,-2266.22,0.00023013,3]
[385833878,1758058253129,-480.0,0.00023013,3]
[385833880,1758058253138,-771.29,0.00023013,3]
[385833882,1758058253147,-921.43,0.00023013,3]
[385833884,1758058253156,-517.55786323,0.00023013,3]
[385833886,1758058253165,-2736.43,0.00023013,3]
[385833888,1758058253174,-480.0,0.00023013,3]
[385833890,1758058253183,-857.9,0.00023013,3]
[385833892,1758058253193,-1435.48,0.00023013,3]
[385833894,1758058253203,-480.0,0.00023013,3]
[385833896,1758058253212,-3193.25,0.00023013,3]
[385833898,1758058253222,-466.61922704,0.00023013,3]
[385833900,1758058253232,-480.0,0.00023013,3]
[385833902,1758058253242,-480.0,0.00023013,3]
[385833904,1758058253251,-480.0,0.00023013,3]
[385833906,1758058253261,-4124.67,0.00023013,3]
[385833908,1758058253270,-782.93,0.00023013,3]
[385833910,1758058253279,-480.0,0.00023013,3]
[385833912,1758058253289,-480.0,0.00023013,3]
[385833914,1758058253299,-717.8,0.00023013,3]
[385833916,1758058253309,-480.0,0.00023013,3]
[385833925,1758058253383,-480.0,0.00023013,3]
[385833927,1758058253393,-480.0,0.00023013,3]
[385833929,1758058253402,-1063.88,0.00023013,3]
[385833931,1758058253411,-480.0,0.00023013,3]
[385833933,1758058253420,-480.0,0.00023013,3]
[385833935,1758058253429,-815.65,0.00023013,3]
[385833937,1758058253439,-482.20714939,0.00023013,3]
[385833939,1758058253447,-480.0,0.00023013,3]
[385833941,1758058253457,-480.0,0.00023013,3]
[385833943,1758058253466,-480.0,0.00023013,3]
[385833945,1758058253475,-480.0,0.00023013,3]
[385833947,1758058253484,-480.0,0.00023013,3]
[385833949,1758058253493,-637.59,0.00023013,3]
[385833950,1758058253502,-480.0,0.00023013,3]
[385833952,1758058253511,-480.0,0.00023013,3]
[385833954,1758058253520,-866.41,0.00023013,3]
[385833956,1758058253529,-1118.25,0.00023013,3]
[385833958,1758058253539,-480.0,0.00023013,3]
[385833960,1758058253548,-5783.91,0.00023013,3]
[385833962,1758058253557,-480.0,0.00023013,3]
[385833964,1758058253567,-480.0,0.00023013,3]
[385833966,1758058253576,-609.26,0.00023013,3]
[385833968,1758058253586,-480.0,0.00023013,3]
[385833970,1758058253595,-20720.4,0.00023013,3]
[385833972,1758058253604,-11132.22,0.00023013,3]
[385833974,1758058253614,-1875.19,0.00023013,3]
[385833976,1758058253623,-480.0,0.00023013,3]
[385833978,1758058253631,-480.0,0.00023013,3]
[385833980,1758058253641,-607.69,0.00023013,3]
[385833982,1758058253650,-480.0,0.00023013,3]
[385833984,1758058253659,-480.0,0.00023013,3]
[385833986,1758058253669,-480.0,0.00023013,3]
[385833988,1758058253678,-480.0,0.00023013,3]
[385833990,1758058253688,-732.37,0.00023013,3]
[385833992,1758058253697,-480.0,0.00023013,3]
[385833994,1758058253706,-480.0,0.00023013,3]
[385833996,1758058253715,-2293.05,0.00023013,3]
[385833998,1758058253724,-1438.87,0.00023013,3]
[385834000,1758058253733,-805.62,0.00023013,3]
[385834002,1758058253742,-480.0,0.00023013,3]
[385834004,1758058253752,-480.0,0.00023013,3]
[385834006,1758058253761,-1155.75,0.00023013,3]
[385834008,1758058253770,-480.0,0.00023013,3]
[385834010,1758058253779,-1919.94,0.00023013,3]
[385834012,1758058253787,-979.01,0.00023013,3]
[385834014,1758058253796,-1029.27,0.00023013,3]
[385834016,1758058253805,-480.0,0.00023013,3]
[385834018,1758058253814,-480.0,0.00023013,3]
[385834020,1758058253823,-480.0,0.00023013,3]
[385834022,1758058253832,-480.0,0.00023013,3]
[385834024,1758058253841,-2512.04,0.00023013,3]
[385834026,1758058253850,-480.0,0.00023013,3]
[385834028,1758058253859,-480.0,0.00023013,3]
[385834030,1758058253869,-2337.78,0.00023013,3]
[385834032,1758058253880,-1124.2,0.00023013,3]
[385834034,1758058253890,-480.0,0.00023013,3]
[385834036,1758058253899,-4896.51,0.00023013,3]
[385834038,1758058253908,-1320.86,0.00023013,3]
[385834040,1758058253917,-480.0,0.00023013,3]
[385834042,1758058253926,-1830.54,0.00023013,2]
[385834044,1758058253934,-480.0,0.00023013,3]
[385834046,1758058253944,-480.0,0.00023013,3]
[385834048,1758058253953,-689.12,0.00023013,3]
[385834050,1758058253962,-480.0,0.00023013,3]
[385834051,1758058253971,-480.0,0.00023013,3]
[385834054,1758058253980,-500.0,0.00023068,2]
[385834055,1758058253989,-1500.0,0.00023068,2]
[385834058,1758058253999,-1500.0,0.00023068,2]
[385834060,1758058254008,-1500.0,0.00023068,2]
[385834062,1758058254017,-500.0,0.00023073,2]
[385834063,1758058254026,-500.0,0.00023073,2]
[385834065,1758058254035,-168.0,0.00023156,2]
[385834067,1758058254044,-420.0,0.0002316,2]
[385834069,1758058254053,-1680.0,0.00023162,2]
[385834071,1758058254062,-800.0,0.00023174,2]
[385834073,1758058254071,-492.0,0.00023209,2]
[385834075,1758058254081,-252.0,0.00023212,2]
[385834077,1758058254091,-1500.0,0.00023268,2]
[385834079,1758058254100,-1500.0,0.00023268,2]
[385834081,1758058254109,-1500.0,0.00023268,2]
[385834083,1758058254119,-1680.0,0.00023271,2]
[385834085,1758058254127,-328.0,0.00023271,3]
[385834087,1758058254137,-450.24,0.00023277,3]
[385834089,1758058254146,-1094.48482787,0.00023287,2]
[385834091,1758058254155,-500.0,0.00023287,2]
[385834093,1758058254164,-200.55115796,0.00023287,2]
[385834095,1758058254174,-159.01928316,0.00023287,2]
[385834097,1758058254183,-500.0,0.00023287,2]
[385834099,1758058254193,-500.0,0.00023287,2]
[385834101,1758058254203,-220.61988296,0.00023287,2]
[385834103,1758058254212,-151.0,0.00023287,2]
[385834105,1758058254222,-500.0,0.00023287,2]
[385834107,1758058254231,-831.0,0.00023287,2]
[385834109,1758058254241,-507.81,0.00023287,3]
[385834111,1758058254250,-387.3,0.00023287,3]
[385834113,1758058254260,-480.0,0.00023287,3]
[385834115,1758058254269,-480.0,0.00023287,3]
[385834117,1758058254279,-480.0,0.00023287,3]
[385834119,1758058254288,-480.0,0.00023287,3]
[385834121,1758058254297,-480.0,0.00023287,3]
[385834123,1758058254307,-214.09490122,0.00023287,3]
[385834125,1758058254316,-518.46,0.00023287,3]
[385834127,1758058254326,-480.0,0.00023287,3]
[385834129,1758058254335,-480.0,0.00023287,3]
[385834131,1758058254343,-480.0,0.00023287,3]
[385834133,1758058254353,-480.0,0.00023287,3]
[385834135,1758058254362,-1325.44,0.00023287,3]
[385834137,1758058254371,-480.0,0.00023287,3]
[385834139,1758058254380,-480.0,0.00023287,3]
[385834141,1758058254389,-505.72,0.00023287,3]
[385834143,1758058254399,-536.1,0.00023287,3]
[385834145,1758058254408,-480.0,0.00023287,3]
[385834147,1758058254417,-480.0,0.00023287,3]
[385834149,1758058254426,-480.0,0.00023287,3]
[385834151,1758058254435,-296.98670035,0.00023287,3]
[385834153,1758058254444,-1918.31,0.00023287,3]
[385834155,1758058254454,-480.0,0.00023287,3]
[385834157,1758058254463,-480.0,0.00023287,3]
[385834159,1758058254472,-480.0,0.00023287,3]
[385834161,1758058254481,-480.0,0.00023287,3]
[385834163,1758058254491,-877.7,0.00023287,3]
[385834165,1758058254500,-480.0,0.00023287,3]
[385834174,1758058254574,-480.0,0.00023287,3]
[385834176,1758058254583,-487.04,0.00023287,3]
[385834178,1758058254593,-1035.57,0.00023287,3]
[385834180,1758058254602,-480.0,0.00023287,3]
[385834182,1758058254611,-652.36,0.00023287,3]
[385834184,1758058254621,-480.0,0.00023287,3]
[385834186,1758058254630,-480.0,0.00023287,3]
[385834188,1758058254639,-480.0,0.00023287,3]
[385834190,1758058254648,-412.73460602,0.00023287,3]
[385834192,1758058254657,-480.0,0.00023287,3]
[385834194,1758058254666,-480.0,0.00023287,3]
[385834196,1758058254675,-480.0,0.00023287,3]
[385834198,1758058254685,-480.0,0.00023287,3]
[385834200,1758058254695,-480.0,0.00023287,3]
[385834202,1758058254704,-480.0,0.00023287,3]
[385834204,1758058254713,-370.21486954,0.00023287,3]
[385834206,1758058254722,-480.0,0.00023287,3]
[385834208,1758058254731,-480.0,0.00023287,3]
[385834210,1758058254741,-480.0,0.00023287,3]
[385834212,1758058254750,-480.0,0.00023287,3]
[385834214,1758058254759,-480.0,0.00023287,3]
[385834216,1758058254768,-739.37,0.00023287,3]
[385834218,1758058254778,-480.0,0.00023287,3]
[385834220,1758058254788,-279.17,0.00023287,3]
[385834222,1758058254800,-480.0,0.00023287,3]
[385834224,1758058254809,-480.0,0.00023287,3]
[385834226,1758058254818,-480.0,0.00023287,3]
[385834228,1758058254828,-480.0,0.00023287,3]
[385834230,1758058254837,-480.0,0.00023287,3]
[385834233,1758058254847,-480.0,0.00023287,3]
[385834235,1758058254860,-757.44,0.00023287,3]
[385834237,1758058254870,-480.0,0.00023287,3]
[385834239,1758058254881,-480.0,0.00023287,3]
[385834241,1758058254890,-1146.66,0.00023287,3]
[385834243,1758058254900,-480.0,0.00023287,3]
[385834245,1758058254909,-480.0,0.00023287,3]
[385834247,1758058254919,-859.2,0.00023287,3]
[385834249,1758058254928,-480.0,0.00023287,3]
[385834251,1758058254937,-480.0,0.00023287,3]
[385834253,1758058254948,-480.0,0.00023287,3]
[385834255,1758058254957,-480.0,0.00023287,3]
[385834257,1758058254966,-480.0,0.00023287,3]
[385834259,1758058254975,-480.0,0.00023287,3]
[385834261,1758058254984,-588.82,0.00023287,3]
[385834263,1758058254993,-2207.31,0.00023287,3]
[385834265,1758058255002,-480.0,0.00023287,3]
[385834267,1758058255011,-480.0,0.00023287,3]
[385834269,1758058255020,-480.0,0.00023287,3]
[385834271,1758058255030,-575.92,0.00023287,3]
[385834273,1758058255039,-162.38,0.00023287,3]
[385834275,1758058255049,-480.0,0.00023287,3]
[385834277,1758058255059,-932.15,0.00023287,3]
[385834279,1758058255068,-480.0,0.00023287,3]
[385834281,1758058255078,-480.0,0.00023287,3]
[385834283,1758058255087,-480.0,0.00023287,3]
[385834284,1758058255096,-480.0,0.00023287,3]
[385834285,1758058255106,-480.0,0.00023287,3]
[385834286,1758058255115,-480.0,0.00023287,3]
[385834287,1758058255124,-480.0,0.00023287,3]
[385834288,1758058255134,-480.0,0.00023287,3]
[385834290,1758058255143,-480.0,0.00023287,3]
[385834292,1758058255153,-480.0,0.00023287,3]
[385834294,1758058255162,-480.0,0.00023287,3]
[385834296,1758058255172,-1129.29,0.00023287,3]
[385834298,1758058255180,-618.42,0.00023287,3]
[385834300,1758058255189,-480.0,0.00023287,3]
[385834302,1758058255198,-1005.25,0.00023287,3]
[385834304,1758058255208,-877.89,0.00023287,3]
[385834306,1758058255217,-568.82,0.00023287,3]
[385834308,1758058255226,-4272.36,0.00023287,3]
[385834310,1758058255235,-480.0,0.00023287,3]
[385834312,1758058255244,-1790.96,0.00023287,3]
[385834314,1758058255254,-480.0,0.00023287,3]
[385834316,1758058255263,-553.21,0.00023287,3]
[385834318,1758058255273,-480.0,0.00023287,3]
[385834320,1758058255282,-2191.19,0.00023287,3]
[385834322,1758058255292,-480.0,0.00023287,3]
[385834324,1758058255301,-488.11613169,0.00023287,3]
[385834326,1758058255310,-480.0,0.00023287,3]
[385834328,1758058255319,-480.0,0.00023287,3]
[385834330,1758058255328,-480.0,0.00023287,3]
[385834332,1758058255337,-5830.79,0.00023287,2]
[385834334,1758058255346,-480.0,0.00023287,3]
[385834336,1758058255355,-2445.62,0.00023287,3]
[385834338,1758058255365,-480.0,0.00023287,3]
[385834340,1758058255374,-480.0,0.00023287,3]
[385834342,1758058255382,-673.7,0.00023287,3]
[385834344,1758058255392,-480.0,0.00023287,3]
[385834346,1758058255401,-480.0,0.00023287,3]
[385834348,1758058255410,-4198.35,0.00023287,3]
[385834350,1758058255419,-480.0,0.00023287,3]
[385834352,1758058255429,-480.0,0.00023287,3]
[385834354,1758058255438,-480.0,0.00023287,3]
[385834356,1758058255447,-480.0,0.00023287,3]
[385834358,1758058255457,-683.31,0.00023287,3]
[385834360,1758058255466,-1125.17,0.00023287,3]
[385834362,1758058255475,-716.81,0.00023287,3]
[385834364,1758058255484,-495.99,0.00023287,3]
[385834366,1758058255493,-480.0,0.00023287,3]
[385834368,1758058255502,-1051.6,0.00023287,3]
[385834370,1758058255511,-2266.22,0.00023287,3]
[385834372,1758058255520,-771.29,0.00023287,3]
[385834374,1758058255529,-921.43,0.00023287,3]
[385834376,1758058255538,-2736.43,0.00023287,3]
[385834378,1758058255547,-857.9,0.00023287,3]
[385834380,1758058255556,-1435.48,0.00023287,3]
[385834382,1758058255565,-480.0,0.00023287,3]
[385834384,1758058255574,-3193.25,0.00023287,3]
[385834386,1758058255583,-480.0,0.00023287,3]
[385834387,1758058255592,-480.0,0.00023287,3]
[385834389,1758058255601,-480.0,0.00023287,3]
[385834392,1758058255611,-4124.67,0.00023287,3]
[385834393,1758058255620,-782.93,0.00023287,3]
[385834402,1758058255690,-480.0,0.00023287,3]
[385834404,1758058255699,-717.8,0.00023287,3]
[385834406,1758058255709,-480.0,0.00023287,3]
[385834408,1758058255718,-480.0,0.00023287,3]
[385834410,1758058255727,-480.0,0.00023287,3]
[385834412,1758058255736,-1063.88,0.00023287,3]
[385834414,1758058255745,-480.0,0.00023287,3]
[385834416,1758058255755,-480.0,0.00023287,3]
[385834418,1758058255764,-815.65,0.00023287,3]
[385834420,1758058255774,-480.0,0.00023287,3]
[385834423,1758058255783,-637.59,0.00023287,3]
[385834424,1758058255793,-480.0,0.00023287,3]
[385834426,1758058255803,-480.0,0.00023287,3]
[385834428,1758058255812,-866.41,0.00023287,3]
[385834431,1758058255821,-1118.25,0.00023287,3]
[385834432,1758058255831,-480.0,0.00023287,3]
[385834435,1758058255840,-5783.91,0.00023287,3]
[385834437,1758058255849,-480.0,0.00023287,3]
[385834439,1758058255858,-480.0,0.00023287,3]
[385834441,1758058255869,-20720.4,0.00023287,3]
[385834443,1758058255880,-11132.22,0.00023287,3]
[385834445,1758058255889,-1875.19,0.00023287,3]
[385834447,1758058255898,-480.0,0.00023287,3]
[385834449,1758058255907,-607.69,0.00023287,3]
[385834451,1758058255916,-480.0,0.00023287,3]
[385834453,1758058255926,-480.0,0.00023287,3]
[385834455,1758058255935,-480.0,0.00023287,3]
[385834457,1758058255945,-732.37,0.00023287,3]
[385834459,1758058255954,-480.0,0.00023287,3]
[385834461,1758058255965,-480.0,0.00023287,3]
[385834463,1758058255974,-2293.05,0.00023287,3]